bitfinex-derivatives/quotes_ETHF0:USTF0_20210109
["timestamp","ask_amount","ask_price","bid_price","bid_amount"]
[1610173783874,43.37284085,1184.6,1184.2,4.00959]
[1610173784276,44.97808822,1184.7,1184.2,4.00959]
[1610173784675,1.6117,1184.7,1184.2,4.00959]
[1610173785378,43.36185664,1184.9,1184.2,4.00959]
[1610173785576,43.36185664,1184.9,1184.6,4.00959]
[1610173785776,48.99119741,1185.0,1184.6,4.00959]
[1610173785977,4.00959,1185.0,1184.6,4.00959]
[1610173786777,4.00959,1185.0,1184.4,2.5356]
[1610173787177,47.3643133,1185.0,1184.4,2.5356]
[1610173787379,43.35945281,1184.9,1184.4,2.5356]
[1610173787576,4.00959,1184.5,1184.4,2.5356]
[1610173787977,4.00959,1184.5,1184.0,1.7015]
[1610173788579,4.00959,1184.5,1183.7,2.4173]
[1610173788777,47.38371114,1184.5,1183.5,64.6725]
[1610173789577,43.37412114,1184.5,1184.1,4.00959]
[1610173790780,15.75401917,1184.6,1184.1,4.00959]
[1610173790781,45.71023933,1184.6,1184.1,4.00959]
[1610173790980,2.3395,1184.6,1184.1,4.00959]
[1610173791580,4.00959,1184.7,1184.5,4.00959]
[1610173794086,4.00959,1184.7,1184.4,2.3852]
[1610173794286,4.00959,1184.7,1184.1,1.664]
[1610173794886,47.36484836,1184.7,1184.1,1.664]
[1610173795088,43.34184943,1184.6,1184.0,62.4481]
[1610173795488,4.00959,1184.1,1184.0,66.45769]
[1610173795688,4.00959,1184.1,1184.0,4.00959]
[1610173795887,4.00959,1184.1,1183.7,1.8208]
[1610173796087,4.00959,1184.1,1183.5,54.2382]
[1610173797489,43.30471191,1184.5,1183.6,4.00959]
[1610173797788,43.32168921,1184.4,1183.6,4.00959]
[1610173798289,43.32191935,1184.5,1183.6,4.00959]
[1610173798488,46.76176831,1184.6,1183.6,4.00959]
[1610173799389,3.405,1184.6,1183.6,4.00959]
[1610173799589,43.3705856,1184.7,1184.2,4.00959]
[1610173800192,45.51948667,1184.8,1184.2,4.00959]
[1610173800391,2.1706,1184.8,1184.2,4.00959]
[1610173800589,43.34954584,1184.9,1184.2,4.00959]
[1610173800793,43.3565869,1185.0,1184.2,4.00959]
[1610173801392,43.35896423,1184.9,1184.2,4.00959]
[1610173801591,4.00959,1184.3,1184.2,4.00959]
[1610173802590,4.00959,1184.3,1183.8,2.0242]
[1610173803493,4.00959,1184.3,1184.2,4.00959]
[1610173803990,4.00959,1184.3,1183.8,2.0242]
[1610173804590,4.00959,1184.3,1183.7,53.8197]
[1610173805593,4.00959,1183.8,1183.7,53.8197]
[1610173805793,4.00959,1183.8,1183.6,4.00959]
[1610173806193,4.00959,1183.8,1183.4,2.1996]
[1610173806394,4.00959,1183.8,1183.1,64.9169]
[1610173807593,4.00959,1183.2,1183.1,64.9169]
[1610173807794,4.00959,1183.2,1183.0,4.00959]
[1610173807995,4.00959,1183.2,1182.5,66.3927]
[1610173808997,4.00959,1183.2,1182.6,1.29001023]
[1610173809196,4.00959,1183.2,1182.6,3.81381023]
[1610173809597,4.00959,1182.7,1182.6,3.81381023]
[1610173810698,4.00959,1182.7,1182.6,2.5238]
[1610173812501,4.00959,1182.7,1182.5,66.3927]
[1610173815603,4.00959,1182.7,1182.6,4.00959]
[1610173816202,4.00959,1182.7,1182.4,2.1888]
[1610173817202,4.00959,1182.7,1181.7,0.25574691]
[1610173817404,4.00959,1182.7,1181.6,51.3938]
[1610173817605,4.00959,1182.0,1181.9,4.00959]
[1610173817804,66.3033,1182.9,1181.9,4.00959]
[1610173818007,66.3033,1182.9,1181.9,5.93899]
[1610173819610,4.00959,1182.4,1182.2,4.00959]
[1610173820410,45.01091203,1183.3,1182.2,4.00959]
[1610173820711,1.5904,1183.3,1182.2,5.88319]
[1610173820911,43.41557631,1183.5,1182.2,5.88319]
[1610173821712,4.00959,1182.3,1182.2,5.88319]
[1610173822111,2.247,1183.2,1182.2,5.88319]
[1610173822310,45.66805103,1183.2,1182.2,5.88319]
[1610173822511,45.66805103,1183.2,1182.4,64.2825]
[1610173822711,2.247,1183.2,1182.4,64.2825]
[1610173822910,2.247,1183.2,1182.2,5.88319]
[1610173823111,2.247,1183.2,1182.2,1.8736]
[1610173823510,2.247,1183.2,1181.9,1.9294]
[1610173823711,4.00959,1182.1,1181.9,5.93899]
[1610173826512,1.7938,1182.9,1181.9,5.93899]
[1610173827512,1.7938,1182.9,1181.9,1.9294]
[1610173827713,4.00959,1182.0,1181.8,4.00959]
[1610173830815,4.00959,1182.0,1181.7,1.6243]
[1610173831715,4.00959,1181.8,1181.7,1.6243]
[1610173832915,4.00959,1181.8,1181.5,4.00959]
[1610173833918,2.0842,1182.6,1181.5,4.00959]
[1610173834119,2.0842,1182.6,1181.5,5.78059]
[1610173834319,43.44374235,1182.8,1181.5,5.78059]
[1610173834521,45.23291787,1182.9,1181.6,1.29124222]
[1610173834822,1.7938,1182.9,1181.6,1.29124222]
[1610173835023,49.7839452,1183.0,1181.6,1.29124222]
[1610173835722,4.00959,1181.7,1181.6,1.29124222]
[1610173837023,2.3591,1182.4,1181.6,1.29124222]
[1610173837425,2.3591,1182.4,1181.5,54.32229]
[1610173837827,2.3591,1182.4,1182.3,4.00959]
[1610173838025,1.5932,1182.7,1182.3,4.00959]
[1610173838226,45.67043806,1183.2,1182.3,4.00959]
[1610173838927,2.247,1183.2,1182.3,4.00959]
[1610173839127,46.82466658,1183.3,1182.3,4.00959]
[1610173839328,3.405,1183.3,1182.3,4.00959]
[1610173839727,3.405,1183.3,1182.2,47.6402]
[1610173839728,3.405,1183.3,1183.0,4.00959]
[1610173840731,45.0773876,1183.6,1183.0,4.00959]
[1610173841531,1.664,1183.6,1183.0,4.00959]
[1610173841732,1.664,1183.6,1183.4,4.00959]
[1610173841933,43.40862284,1183.7,1183.4,4.00959]
[1610173842131,43.40862284,1183.7,1182.8,68.3029]
[1610173842336,45.90882284,1183.7,1182.8,68.3029]
[1610173842533,45.90882284,1183.7,1182.6,1.7291]
[1610173842931,43.41396173,1183.6,1182.6,1.7291]
[1610173843734,4.00959,1183.1,1182.9,4.00959]
[1610173844333,43.41396173,1183.6,1182.9,4.00959]
[1610173844535,2.2232,1183.3,1182.9,4.00959]
[1610173844735,43.41396173,1183.6,1182.9,4.00959]
[1610173844935,15.92708226,1183.7,1182.9,4.00959]
[1610173844936,45.90825002,1183.7,1182.9,4.00959]
[1610173845140,2.5002,1183.7,1182.9,4.00959]
[1610173845335,2.5002,1183.7,1183.0,47.615]
[1610173845735,2.5002,1183.7,1183.6,4.00959]
[1610173847539,4.00959,1184.1,1183.6,4.00959]
[1610173847741,4.00959,1183.7,1183.6,4.00959]
[1610173850244,4.00959,1183.7,1183.0,47.615]
[1610173851846,45.12962602,1183.9,1183.0,47.615]
[1610173851847,4.00959,1183.3,1183.1,4.00959]
[1610173852548,4.00959,1183.3,1182.7,64.1435]
[1610173853547,4.00959,1183.3,1182.7,62.4894]
[1610173853748,4.00959,1183.1,1182.9,4.00959]
[1610173853948,4.00959,1183.1,1182.7,62.4894]
[1610173854149,4.00959,1183.1,1182.1,2.4115]
[1610173854350,4.00959,1183.1,1182.2,68.6172]
[1610173854551,4.00959,1183.1,1182.2,70.5626]
[1610173855853,4.00959,1182.4,1182.3,4.00959]
[1610173857453,4.00959,1182.4,1181.8,2.3935]
[1610173857653,4.00959,1182.4,1181.5,59.51802472]
[1610173857858,62.4709,1182.9,1181.5,59.2606]
[1610173857859,1.8338,1182.8,1181.5,59.2606]
[1610173858054,5.2388,1182.8,1181.5,59.2606]
[1610173858855,48.68146066,1182.8,1181.5,59.2606]
[1610173859757,48.68146066,1182.8,1182.3,4.00959]
[1610173859957,48.68146066,1182.8,1181.5,1.771]
[1610173859958,5.2388,1182.8,1181.5,1.771]
[1610173860159,5.2388,1182.8,1182.0,52.867]
[1610173861860,4.00959,1182.1,1182.0,56.87659]
[1610173862060,4.00959,1182.1,1182.0,4.00959]
[1610173862660,4.00959,1182.1,1181.7,2.0595]
[1610173863760,4.00959,1182.1,1181.7,6.06909]
[1610173865563,4.00959,1182.1,1181.7,4.00959]
[1610173865961,4.00959,1181.8,1181.7,4.00959]
[1610173866162,4.00959,1181.8,1181.1,57.8178]
[1610173866965,1.6167,1182.4,1181.1,58.07561941]
[1610173867163,1.6167,1182.4,1181.1,2.13171941]
[1610173867364,1.6167,1182.4,1181.3,61.3899]
[1610173867564,1.6167,1182.4,1181.2,0.25763147]
[1610173867764,6.0622,1182.6,1181.3,60.6671]
[1610173867964,6.0622,1182.6,1181.9,4.00959]
[1610173869966,4.00959,1182.0,1181.9,4.00959]
[1610173870769,4.00959,1182.0,1181.8,1.6869]
[1610173872870,4.00959,1182.0,1181.4,4.00959]
[1610173873272,1.7266,1182.5,1181.4,4.00959]
[1610173873470,1.7266,1182.5,1181.4,6.08029]
[1610173873872,4.00959,1182.2,1182.0,4.00959]
[1610173876375,5.2388,1182.8,1182.0,4.00959]
[1610173876574,5.2388,1182.8,1182.1,69.7295]
[1610173876974,1.8338,1182.8,1182.1,69.7295]
[1610173877276,1.8749,1183.1,1182.1,69.7295]
[1610173877474,43.42559225,1183.2,1182.1,69.7295]
[1610173877874,4.00959,1182.4,1182.3,4.00959]
[1610173879074,4.00959,1182.4,1182.0,1.7798]
[1610173879876,4.00959,1182.1,1182.0,1.7798]
[1610173880678,4.00959,1182.1,1181.8,4.00959]
[1610173881380,91.15281817,1182.8,1181.8,4.00959]
[1610173881582,48.46208659,1182.9,1181.8,5.83059]
[1610173881981,4.00959,1182.1,1182.0,4.00959]
[1610173882184,4.00959,1182.1,1181.8,1.821]
[1610173883788,4.00959,1182.1,1181.6,64.1493]
[1610173883985,4.00959,1181.7,1181.6,64.1493]
[1610173884584,4.00959,1181.7,1181.4,2.0707]
[1610173884788,4.00959,1181.7,1181.1,1.8739]
[1610173884983,4.00959,1181.7,1180.8,0.25535972]
[1610173885186,4.00959,1181.7,1180.7,63.3388]
[1610173885985,4.00959,1181.0,1180.7,63.3388]
[1610173886185,4.00959,1181.0,1180.4,0.25553565]
[1610173886585,4.00959,1181.0,1180.3,0.25558978]
[1610173886986,4.00959,1181.0,1180.2,0.25552344]
[1610173887589,4.00959,1181.0,1180.1,0.25552607]
[1610173887991,4.00959,1180.6,1180.3,4.00959]
[1610173888390,4.00959,1180.6,1180.3,5.30184919]
[1610173889690,4.00959,1180.6,1180.3,4.00959]
[1610173890489,4.00959,1180.6,1180.1,0.25552607]
[1610173890691,12.40769,1180.6,1180.0,0.25598103]
[1610173890891,12.40769,1180.6,1179.9,0.25628484]
[1610173891891,4.00959,1180.2,1180.1,4.00959]
[1610173892091,4.00959,1180.2,1179.9,0.25628484]
[1610173892493,4.00959,1180.2,1179.8,0.25697118]
[1610173892897,4.00959,1180.2,1179.7,0.25719377]
[1610173893096,4.00959,1180.2,1179.5,0.25732451]
[1610173893294,10.89489,1180.2,1179.5,0.25732451]
[1610173893494,70.01159,1180.2,1179.5,0.25732451]
[1610173893695,70.01159,1180.2,1179.4,0.25752092]
[1610173894094,4.00959,1179.7,1179.4,4.26711092]
[1610173894295,4.00959,1179.7,1179.4,4.00959]
[1610173894695,66.002,1180.2,1179.4,4.00959]
[1610173894896,1.7798,1180.7,1179.4,5.85047517]
[1610173895095,1.7798,1180.7,1179.5,48.7527]
[1610173895297,1.7798,1180.7,1179.5,49.01046698]
[1610173895496,1.7798,1180.7,1179.6,0.25804838]
[1610173895695,6.3586,1180.9,1179.6,0.25804838]
[1610173895896,6.3586,1180.9,1179.7,0.25796862]
[1610173896096,6.3586,1180.9,1180.3,4.00959]
[1610173897197,43.48563375,1181.3,1180.3,4.00959]
[1610173897396,45.4656847,1181.4,1180.3,68.97609]
[1610173897796,43.43717303,1181.5,1180.3,68.97609]
[1610173897995,4.00959,1181.3,1181.1,4.00959]
[1610173898595,43.41293752,1181.9,1181.1,4.00959]
[1610173898795,43.41293752,1181.9,1181.1,5.82739]
[1610173898997,43.44728615,1182.1,1181.1,5.82739]
[1610173899195,45.42612105,1182.2,1181.1,5.82739]
[1610173899596,43.43802105,1182.2,1181.1,5.82739]
[1610173899997,43.41532422,1182.3,1182.1,4.00959]
[1610173900500,47.44159245,1182.4,1182.1,4.00959]
[1610173900799,4.00959,1182.4,1182.1,4.00959]
[1610173900998,43.44826441,1182.5,1182.1,4.00959]
[1610173901399,43.44150988,1182.6,1182.1,4.00959]
[1610173901599,43.43272589,1182.9,1182.1,4.00959]
[1610173901801,43.43272589,1182.9,1182.1,6.34959]
[1610173902001,13.4326421,1183.0,1182.1,6.34959]
[1610173902002,4.00959,1182.7,1182.1,2.34]
[1610173903503,47.44798498,1182.7,1182.1,2.34]
[1610173904103,43.43839498,1182.7,1182.2,4.00959]
[1610173904303,43.42509567,1182.9,1182.2,4.00959]
[1610173904705,43.38802195,1182.8,1182.2,4.00959]
[1610173905305,43.36152538,1182.9,1182.2,4.00959]
[1610173905904,43.36152538,1182.9,1182.1,2.34]
[1610173906105,4.00959,1182.2,1182.1,2.34]
[1610173906704,4.00959,1182.2,1181.8,2.0814]
[1610173907107,4.00959,1182.2,1181.3,69.2172]
[1610173908108,43.16137065,1182.3,1181.3,69.2172]
[1610173908910,43.06428548,1182.2,1181.3,69.2172]
[1610173909110,43.03236603,1182.0,1181.3,69.2172]
[1610173909911,3.10096779,1182.3,1181.3,69.2172]
[1610173909912,43.01112543,1181.9,1181.3,69.2172]
[1610173910109,4.00959,1181.4,1181.3,69.2172]
[1610173910810,4.00959,1181.4,1181.1,1.8178]
[1610173911110,4.00959,1181.4,1180.9,4.00959]
[1610173912113,42.9138058,1181.9,1181.1,4.00959]
[1610173912315,31.68273724,1181.9,1181.1,6.22399]
[1610173912715,42.77072378,1182.0,1181.1,6.22399]
[1610173913516,42.77072378,1182.0,1181.1,2.2144]
[1610173914016,4.00959,1181.2,1181.1,2.2144]
[1610173917319,4.00959,1181.2,1180.9,4.00959]
[1610173918120,4.00959,1181.2,1181.1,4.00959]
[1610173918322,31.46151715,1181.9,1181.1,6.15009]
[1610173918522,31.49422543,1182.0,1181.3,62.6841]
[1610173918923,27.15078534,1182.1,1181.3,62.6841]
[1610173918924,42.70257161,1182.1,1181.3,62.6841]
[1610173919123,31.55744876,1182.2,1181.3,62.6841]
[1610173919527,44.52889976,1182.4,1181.3,62.6841]
[1610173919724,20.51848203,1182.4,1181.3,62.6841]
[1610173919925,1.7748,1182.4,1181.3,62.6841]
[1610173920128,4.00959,1182.4,1182.3,4.00959]
[1610173921628,42.78556411,1182.8,1182.3,4.00959]
[1610173921930,42.72771201,1182.9,1182.3,4.00959]
[1610173922128,4.00959,1182.6,1182.3,4.00959]
[1610173922328,4.00959,1182.6,1182.0,2.4119]
[1610173924233,4.00959,1182.1,1182.0,6.42149]
[1610173926035,4.00959,1182.1,1182.0,2.4119]
[1610173926435,42.6513882,1182.6,1181.8,4.00959]
[1610173926836,31.48672453,1182.6,1181.8,4.00959]
[1610173927137,42.65018565,1182.7,1181.8,4.00959]
[1610173928138,4.00959,1182.1,1182.0,4.00959]
[1610173929439,4.00959,1182.1,1181.6,64.7302]
[1610173930240,4.00959,1181.9,1181.8,4.00959]
[1610173932441,46.05064828,1182.6,1181.8,4.00959]
[1610173932844,3.405,1182.6,1181.8,4.00959]
[1610173934245,4.00959,1182.5,1182.4,4.00959]
[1610173935748,4.00959,1182.5,1181.6,2.1258]
[1610173935946,4.00959,1182.5,1181.5,70.6365]
[1610173936147,4.00959,1182.1,1181.8,4.00959]
[1610173936646,4.00959,1182.1,1181.5,70.6365]
[1610173938148,4.00959,1182.1,1181.9,4.00959]
[1610173938550,3.405,1182.6,1181.9,5.99259]
[1610173939651,3.405,1182.6,1181.9,1.983]
[1610173940052,46.17506054,1182.6,1181.9,1.983]
[1610173940252,4.00959,1182.0,1181.9,1.983]
[1610173940853,31.48871939,1182.5,1181.9,1.983]
[1610173941052,46.07017092,1182.6,1181.9,1.983]
[1610173941352,4.62149434,1182.6,1181.9,1.983]
[1610173941553,3.405,1182.6,1181.9,1.983]
[1610173942253,4.00959,1182.2,1182.1,4.00959]
[1610173942453,4.00959,1182.2,1181.9,1.983]
[1610173943753,4.00959,1182.2,1181.5,70.6365]
[1610173944253,31.36913493,1182.5,1181.8,4.00959]
[1610173944553,10.0,1182.1,1181.8,5.81609]
[1610173945656,10.0,1182.1,1181.8,1.8065]
[1610173946257,4.00959,1181.9,1181.8,1.8065]
[1610173949759,4.00959,1181.9,1181.5,70.6365]
[1610173950359,4.00959,1181.7,1181.6,4.00959]
[1610173952663,4.00959,1181.7,1181.1,54.4045]
[1610173954265,10.0,1182.1,1181.4,4.00959]
[1610173954666,10.0,1182.1,1181.4,6.30749]
[1610173956368,4.00959,1181.5,1181.4,6.30749]
[1610173956566,4.00959,1181.5,1181.4,2.2979]
[1610173957369,10.0,1182.1,1181.4,2.2979]
[1610173957767,10.0,1182.1,1181.4,9.9066]
[1610173958367,10.0,1182.1,1181.7,4.00959]
[1610173958868,10.0,1182.1,1181.7,6.45949]
[1610173960472,4.00959,1182.0,1181.9,4.00959]
[1610173970791,4.00959,1182.0,1181.7,2.4499]
[1610173970991,4.00959,1182.0,1181.4,2.2979]
[1610173971192,4.00959,1182.0,1181.2,57.343]
[1610173972397,10.0,1182.1,1181.3,4.00959]
[1610173972794,10.0,1182.1,1181.1,2.1405]
[1610173972994,54.5335,1181.8,1181.1,2.1405]
[1610173973193,54.5335,1181.8,1180.6,48.4554]
[1610173973395,57.9385,1181.8,1180.6,48.4554]
[1610173973794,79.88267659,1181.8,1180.6,48.4554]
[1610173973997,30.87953874,1181.7,1180.6,48.4554]
[1610173974194,30.87953874,1181.7,1180.1,2.44485736]
[1610173974393,4.00959,1180.2,1180.1,6.19599]
[1610173976194,4.00959,1180.2,1180.1,2.1864]
[1610173976596,4.00959,1180.2,1179.9,4.00959]
[1610173977998,62.2593,1180.8,1179.9,4.00959]
[1610173978398,4.00959,1180.4,1180.3,4.00959]
[1610173978999,4.00959,1180.4,1179.9,53.6998]
[1610173980501,4.00959,1180.0,1179.9,53.6998]
[1610173980702,4.00959,1180.0,1179.9,2.059]
[1610173981501,4.00959,1180.0,1179.2,59.5213]
[1610173981704,4.00959,1180.0,1179.0,0.51735277]
[1610173981705,4.00959,1180.0,1179.0,0.25869017]
[1610173982502,59.1539,1180.2,1179.1,4.00959]
[1610173982702,59.1539,1180.2,1179.1,6.33659]
[1610173983604,21.73505494,1180.5,1179.1,6.33659]
[1610173983805,65.2485,1180.2,1179.1,6.33659]
[1610173984403,4.00959,1179.2,1179.1,2.327]
[1610173986106,4.00959,1179.2,1178.2,0.25884659]
[1610173986507,4.00959,1178.3,1178.1,0.6153159]
[1610173987309,2.5773,1179.4,1178.1,0.6153159]
[1610173987510,2.5773,1179.4,1178.1,69.9659159]
[1610173987710,2.5773,1179.4,1178.1,2.8951159]
[1610173988113,2.5773,1179.4,1178.5,55.1541]
[1610173988311,6.5808,1179.6,1178.5,56.759]
[1610173988511,4.00959,1179.2,1179.1,4.00959]
[1610173989114,4.00959,1179.2,1178.5,56.759]
[1610173989313,4.00959,1179.2,1178.5,1.6049]
[1610173990411,4.00959,1178.6,1178.5,5.61449]
[1610173990913,4.00959,1178.6,1178.5,1.6049]
[1610173993317,4.00959,1178.6,1178.1,2.8951159]
[1610173993717,23.46914787,1179.4,1178.1,2.8951159]
[1610173993918,1.8284,1179.4,1178.2,68.0452]
[1610173994520,4.00959,1178.9,1178.8,4.00959]
[1610173994918,4.00959,1178.9,1178.2,0.25891877]
[1610173995319,4.00959,1178.9,1178.1,62.26415668]
[1610173996419,77.3047,1179.6,1178.2,0.25885974]
[1610173996619,4.00959,1179.2,1178.8,4.00959]
[1610173996820,6.5808,1179.6,1178.8,4.00959]
[1610173998620,4.00959,1178.9,1178.7,2.5293]
[1610173999219,6.5808,1179.6,1178.7,2.5293]
[1610174000523,6.5808,1179.6,1179.0,4.00959]
[1610174001024,6.5808,1179.6,1178.8,1.29414567]
[1610174002431,6.5808,1179.6,1178.7,2.5293]
[1610174002624,6.5808,1179.6,1178.9,4.00959]
[1610174002829,6.5808,1179.6,1178.6,2.2777]
[1610174003832,28.40854136,1179.6,1178.6,2.2777]
[1610174004031,21.8242891,1179.5,1178.6,2.2777]
[1610174004531,4.00959,1178.7,1178.6,2.2777]
[1610174005929,4.00959,1178.7,1178.1,2.8951159]
[1610174006530,4.00959,1178.2,1178.1,2.8951159]
[1610174006729,4.00959,1178.2,1178.1,0.6153159]
[1610174014141,4.00959,1178.2,1178.1,3.1921159]
[1610174014345,6.2049,1178.9,1178.1,3.1921159]
[1610174014543,4.00959,1178.5,1178.2,4.00959]
[1610174014742,6.2049,1178.9,1178.2,4.00959]
[1610174016544,4.00959,1178.3,1178.2,4.00959]
[1610174016946,6.2049,1178.9,1178.2,4.00959]
[1610174018546,4.00959,1178.6,1178.2,4.00959]
[1610174019647,4.00959,1178.6,1178.1,3.1921159]
[1610174020550,4.00959,1178.2,1178.1,3.1921159]
[1610174020748,4.00959,1178.2,1178.1,0.6153159]
[1610174021548,13.99335907,1178.2,1178.1,0.6153159]
[1610174021949,15.94741855,1178.2,1178.1,0.6153159]
[1610174022348,7.11997416,1178.2,1178.1,0.6153159]
[1610174022750,25.61130931,1178.2,1178.1,0.6153159]
[1610174022950,18.74560859,1178.2,1178.1,0.6153159]
[1610174024149,25.59574552,1178.2,1178.1,0.6153159]
[1610174025553,18.74560859,1178.2,1178.1,0.6153159]
[1610174026050,13.9576769,1178.2,1178.1,0.6153159]
[1610174026250,18.69353636,1178.2,1178.1,0.6153159]
[1610174026650,4.00959,1178.2,1178.1,0.6153159]
[1610174030859,25.57909939,1178.2,1178.1,0.6153159]
[1610174032356,18.72363599,1178.2,1178.1,0.6153159]
[1610174034058,25.56755693,1178.2,1178.1,0.6153159]
[1610174034457,18.72363599,1178.2,1178.1,0.6153159]
[1610174035862,4.00959,1178.2,1178.1,0.6153159]
[1610174036561,18.68374045,1178.2,1178.1,0.6153159]
[1610174036965,3.99045534,1178.2,1178.1,0.6153159]
[1610174037164,21.54142627,1178.3,1178.1,0.6153159]
[1610174037364,14.69563563,1178.3,1178.1,0.6153159]
[1610174037765,21.57010173,1178.7,1178.1,3.1897159]
[1610174038165,14.72247793,1178.8,1178.1,3.1897159]
[1610174038368,14.72680707,1178.9,1178.1,3.1897159]
[1610174038565,14.72680707,1178.9,1178.7,4.00959]
[1610174038767,14.7319126,1179.0,1178.7,4.00959]
[1610174039266,21.59720811,1179.1,1178.7,4.00959]
[1610174039466,14.73403542,1179.0,1178.6,2.3474]
[1610174039866,21.59747468,1179.0,1178.6,2.3474]
[1610174040267,14.72244172,1178.8,1178.6,2.3474]
[1610174040468,14.72282654,1178.7,1178.6,2.3474]
[1610174040669,18.73241654,1178.7,1178.6,2.3474]
[1610174040870,25.59548023,1178.7,1178.6,2.3474]
[1610174041269,4.00959,1178.7,1178.6,2.3474]
[1610174041871,21.61903591,1178.9,1178.6,2.3474]
[1610174042270,14.74783144,1178.9,1178.6,2.3474]
[1610174042673,4.00959,1178.9,1178.7,4.00959]
[1610174042872,14.75711127,1179.0,1178.7,4.00959]
[1610174043072,21.63193225,1179.1,1178.7,4.00959]
[1610174043273,21.64019755,1179.2,1178.7,4.00959]
[1610174043672,21.64222114,1179.3,1178.7,4.00959]
[1610174044073,21.65771926,1179.5,1178.7,4.00959]
[1610174044273,21.66936511,1179.6,1178.7,4.00959]
[1610174044673,21.68023951,1179.7,1179.5,4.00959]
[1610174044874,21.68073424,1179.8,1179.5,6.47039]
[1610174045474,21.70187019,1180.0,1179.5,6.47039]
[1610174045976,21.70853828,1180.1,1179.5,6.47039]
[1610174046575,21.71211062,1180.2,1180.0,4.00959]
[1610174046875,21.71211062,1180.2,1180.0,5.70169]
[1610174047075,14.8113241,1180.2,1180.0,5.70169]
[1610174047676,21.70762196,1180.2,1180.0,5.70169]
[1610174048077,16.75607529,1180.1,1180.0,5.70169]
[1610174048276,16.75607529,1180.1,1180.0,1.6921]
[1610174048677,20.76566529,1180.1,1180.0,1.6921]
[1610174048877,12.85862496,1180.1,1180.0,1.6921]
[1610174049078,15.9644827,1180.1,1180.0,1.6921]
[1610174049877,11.9548927,1180.1,1180.0,1.6921]
[1610174050078,8.84903496,1180.1,1180.0,1.6921]
[1610174050480,16.75482126,1180.1,1180.0,1.6921]
[1610174050679,16.75482126,1180.1,1180.0,5.70169]
[1610174051380,16.75482126,1180.1,1180.0,1.6921]
[1610174051580,3.10591717,1180.1,1180.0,1.6921]
[1610174051981,11.9622457,1180.1,1179.5,2.4608]
[1610174052180,11.9622457,1180.1,1179.3,50.1659]
[1610174052381,9.85793897,1179.8,1179.3,50.1659]
[1610174052582,13.86752897,1179.8,1179.7,4.00959]
[1610174052781,13.86752897,1179.8,1179.7,6.41559]
[1610174053185,9.85793897,1179.8,1179.7,6.41559]
[1610174053382,16.73969381,1179.9,1179.7,6.41559]
[1610174053686,9.85486207,1179.9,1179.7,6.41559]
[1610174054083,16.74041157,1180.0,1179.7,6.41559]
[1610174054684,16.76162767,1180.2,1179.9,4.00959]
[1610174055083,8.86049058,1180.3,1179.9,4.00959]
[1610174055084,16.78176289,1180.3,1179.9,4.00959]
[1610174055883,16.78176289,1180.3,1179.7,2.406]
[1610174056085,16.77178851,1180.2,1179.7,2.406]
[1610174056486,16.76345456,1180.1,1179.7,2.406]
[1610174056686,16.76265434,1180.0,1179.8,4.00959]
[1610174056986,6.88978214,1179.9,1179.7,2.406]
[1610174057387,21.6841391,1179.8,1179.7,2.406]
[1610174057788,14.7922428,1179.8,1179.7,2.406]
[1610174057988,21.68488038,1179.8,1179.0,63.2982]
[1610174058588,25.69447038,1179.8,1179.6,4.00959]
[1610174058790,21.71071217,1179.7,1179.0,63.2982]
[1610174058989,21.71071217,1179.7,1179.6,1.9308]
[1610174059192,14.81037012,1179.7,1179.6,1.9308]
[1610174059892,21.74392597,1180.0,1179.6,1.9308]
[1610174060192,8.88403146,1180.1,1179.6,1.9308]
[1610174060193,21.7510855,1180.1,1179.6,1.9308]
[1610174060694,21.7510855,1180.1,1180.0,4.00959]
[1610174060893,21.7510855,1180.1,1180.0,5.69529]
[1610174061295,21.75673824,1180.2,1180.0,5.69529]
[1610174061893,21.75752394,1180.3,1180.0,5.69529]
[1610174062696,21.76319091,1180.4,1180.2,4.00959]
[1610174063097,21.77588274,1180.5,1180.2,4.00959]
[1610174063296,21.77925744,1180.7,1180.2,4.00959]
[1610174063697,21.789252,1180.8,1180.2,4.00959]
[1610174064098,21.77786933,1180.9,1180.2,4.00959]
[1610174064496,8.89789988,1181.1,1180.2,4.00959]
[1610174064497,21.79134836,1181.0,1180.2,4.00959]
[1610174064697,21.79134836,1181.0,1180.9,4.00959]
[1610174064897,21.79134836,1181.0,1180.9,2.3029]
[1610174065197,8.89999178,1181.0,1180.9,2.3029]
[1610174065597,12.00333596,1181.0,1180.9,2.3029]
[1610174065799,8.89999178,1181.0,1180.9,2.3029]
[1610174066202,21.77983585,1181.0,1180.9,2.3029]
[1610174066503,21.78414514,1181.1,1180.9,2.3029]
[1610174066702,21.78414514,1181.1,1181.0,4.00959]
[1610174067401,21.81076371,1181.2,1181.0,4.00959]
[1610174068001,8.91133971,1181.3,1181.0,4.00959]
[1610174068002,21.82159189,1181.3,1181.0,4.00959]
[1610174068201,21.82159189,1181.3,1181.0,72.72749]
[1610174068602,21.82159189,1181.3,1181.2,4.00959]
[1610174068807,10.89053787,1181.5,1181.2,6.28439]
[1610174068808,21.85405476,1181.5,1181.2,6.28439]
[1610174069105,21.86818942,1181.6,1181.2,6.28439]
[1610174069504,30.82421679,1181.7,1181.2,6.28439]
[1610174070103,8.94483142,1181.8,1181.2,6.28439]
[1610174070505,21.89345879,1181.7,1181.2,6.28439]
[1610174070704,21.89345879,1181.7,1181.6,4.00959]
[1610174070905,21.89345879,1181.7,1181.6,6.16989]
[1610174071306,8.93928334,1181.7,1181.6,6.16989]
[1610174071609,12.04111388,1181.7,1181.6,6.16989]
[1610174072006,10.91970769,1181.7,1181.6,6.16989]
[1610174072408,12.8964186,1181.7,1181.6,2.1603]
[1610174072606,16.9060086,1181.7,1181.2,2.2748]
[1610174073008,10.91181329,1181.4,1181.2,2.2748]
[1610174073213,8.92874863,1181.3,1181.2,2.2748]